bitfinex-derivatives/quotes_BTCF0:USTF0_20240830
["timestamp","ask_amount","ask_price","bid_price","bid_amount"]
[1725033714375,0.3608,58120.0,58114.0,0.00025808]
[1725033714572,0.08604,58115.0,58114.0,0.00025808]
[1725033714774,0.446834,58120.0,58114.0,0.00025808]
[1725033714974,0.446834,58120.0,58115.0,0.08604]
[1725033715174,0.00025808,58125.0,58124.0,0.086027]
[1725033715374,0.00025808,58125.0,58124.0,0.746827]
[1725033715766,0.00025808,58125.0,58124.0,0.6608]
[1725033715973,0.086027,58124.0,58120.0,0.086032]
[1725033716184,0.00025808,58125.0,58123.0,0.001]
[1725033716480,0.00025808,58125.0,58124.0,0.446827]
[1725033716982,0.00025808,58125.0,58124.0,0.447827]
[1725033718682,0.3608,58138.0,58136.0,0.086008]
[1725033718874,0.21491605,58140.0,58137.0,0.3608]
[1725033719179,0.19616,58140.0,58139.0,0.386005]
[1725033719578,0.19616,58140.0,58134.0,0.386011]
[1725033719772,0.19616,58140.0,58134.0,0.3]
[1725033719972,0.19616,58140.0,58132.0,0.49584]
[1725033720190,0.55696,58140.0,58132.0,0.3608]
[1725033720489,0.086015,58132.0,58131.0,0.36105808]
[1725033720879,1.11608,58132.0,58119.0,0.3]
[1725033721077,0.3608,58128.0,58116.0,0.3608]
[1725033721289,0.3608,58128.0,58111.0,0.446845]
[1725033721290,0.3608,58123.0,58111.0,0.446845]
[1725033721486,0.086045,58112.0,58111.0,0.3608]
[1725033722284,0.086045,58112.0,58106.0,0.00025808]
[1725033722285,0.3608,58112.0,58106.0,0.00025808]
[1725033722486,0.086052,58107.0,58106.0,0.08631108]
[1725033722678,0.3608,58112.0,58111.0,0.087046]
[1725033722878,0.00025808,58117.0,58116.0,0.086039]
[1725033723173,0.00025808,58117.0,58111.0,0.301]
[1725033723381,0.00025808,58117.0,58111.0,0.3]
[1725033723580,0.00025808,58117.0,58116.0,0.386039]
[1725033723985,0.00025808,58117.0,58116.0,1.588278]
[1725033724184,0.01894607,58132.0,58131.0,0.086016]
[1725033724389,0.446809,58136.0,58131.0,0.086016]
[1725033724586,0.086015,58132.0,58121.0,0.6883]
[1725033724777,0.37933116,58136.0,58121.0,0.6883]
[1725033724778,0.08603,58122.0,58121.0,0.6883]
[1725033724981,0.3608,58130.0,58121.0,0.6883]
[1725033725289,0.00025808,58131.0,58130.0,0.086018]
[1725033725485,0.00025808,58131.0,58130.0,0.386018]
[1725033726189,0.00025808,58131.0,58130.0,0.3]
[1725033726387,0.00025808,58131.0,58129.0,0.3608]
[1725033726687,0.00025808,58131.0,58121.0,0.6883]
[1725033726882,0.086021,58128.0,58122.0,0.086029]
[1725033727082,0.086024,58127.0,58122.0,0.086029]
[1725033727391,0.086023,58127.0,58126.0,0.3608]
[1725033728081,0.00025808,58131.0,58121.0,0.6883]
[1725033728082,0.086027,58124.0,58121.0,0.6883]
[1725033728477,0.086027,58124.0,58121.0,0.05122221]
[1725033728478,0.3608,58124.0,58121.0,0.05122221]
[1725033728688,0.086031,58121.0,58120.0,0.00025808]
[1725033728989,0.00025808,58131.0,58126.0,0.001]
[1725033729189,0.00025808,58131.0,58126.0,0.301]
[1725033729494,0.00025808,58131.0,58130.0,0.446818]
[1725033730189,0.00025808,58131.0,58130.0,0.53246058]
[1725033730390,0.00025808,58131.0,58130.0,0.66354843]
[1725033730686,0.00025808,58131.0,58130.0,0.53226524]
[1725033731289,0.19616,58140.0,58139.0,0.086005]
[1725033731486,0.19616,58140.0,58139.0,0.05126324]
[1725033731693,0.19616,58140.0,58138.0,0.42915099]
[1725033731891,0.19616,58140.0,58139.0,0.06835099]
[1725033732087,0.19616,58140.0,58139.0,0.15435599]
[1725033732593,0.19616,58140.0,58139.0,0.17144374]
[1725033732791,0.19616,58140.0,58139.0,0.087005]
[1725033733293,0.19616,58140.0,58139.0,0.30252806]
[1725033733487,0.282163,58140.0,58139.0,0.001]
[1725033734890,0.19616,58140.0,58139.0,0.001]
[1725033735488,0.19616,58140.0,58139.0,0.087005]
[1725033735689,0.19616,58140.0,58139.0,0.21708548]
[1725033735984,0.19616,58140.0,58139.0,0.3037021]
[1725033736185,0.19616,58140.0,58139.0,0.21808548]
[1725033736392,0.19616,58140.0,58139.0,1.88366158]
[1725033736597,0.19616,58140.0,58139.0,1.28366158]
[1725033736802,0.19616,58140.0,58139.0,0.5788724]
[1725033737003,0.19616,58140.0,58139.0,0.6815885]
[1725033737299,0.19616,58140.0,58139.0,0.68344445]
[1725033737500,0.19616,58140.0,58139.0,0.70015555]
[1725033737697,0.19616,58140.0,58139.0,0.78616055]
[1725033738000,0.00025808,58145.0,58139.0,0.78616055]
[1725033738001,0.00025808,58145.0,58144.0,0.385997]
[1725033738214,0.00025808,58145.0,58144.0,0.96344437]
[1725033738393,0.00025808,58145.0,58144.0,0.96344396]
[1725033739301,0.00025808,58145.0,58144.0,0.96386099]
[1725033739605,0.014,58145.0,58144.0,1.99482399]
[1725033739801,0.014,58145.0,58144.0,2.24033161]
[1725033740000,0.14,58166.0,58144.0,2.24033161]
[1725033740001,0.089966,58166.0,58161.0,0.3]
[1725033740297,0.446747,58178.0,58166.0,0.085965]
[1725033740298,0.1269,58176.0,58166.0,0.085965]
[1725033740500,0.1269,58176.0,58167.0,0.3]
[1725033740700,0.00025808,58177.0,58173.0,0.3]
[1725033740894,0.00025808,58177.0,58176.0,0.08595]
[1725033741697,0.3608,58226.0,58192.0,3.3561]
[1725033741901,0.3608,58226.0,58177.0,0.51556]
[1725033741902,0.3608,58226.0,58211.0,0.3]
[1725033742109,0.3608,58220.0,58210.0,0.3608]
[1725033742294,0.085888,58218.0,58210.0,0.3608]
[1725033742494,0.3608,58220.0,58213.0,0.3]
[1725033742798,0.3608,58220.0,58211.0,0.00025759]
[1725033743103,0.3608,58220.0,58211.0,0.00125759]
[1725033743306,0.3608,58213.0,58211.0,0.00125759]
[1725033743497,0.6608,58213.0,58195.0,0.3608]
[1725033743798,0.731706,58219.0,58187.0,0.3]
[1725033743799,0.3608,58199.0,58189.0,0.3608]
[1725033744003,0.085925,58193.0,58189.0,0.3608]
[1725033744209,0.085927,58192.0,58189.0,0.3608]
[1725033744401,0.085929,58191.0,58189.0,0.3608]
[1725033744590,0.00025759,58196.0,58189.0,0.3608]
[1725033745098,0.00025759,58196.0,58184.0,0.00025759]
[1725033745099,0.08617859,58196.0,58185.0,0.3608]
[1725033745497,0.085924,58194.0,58189.0,0.001]
[1725033745695,0.085926,58193.0,58189.0,0.001]
[1725033746000,0.085926,58193.0,58186.0,0.3608]
[1725033746303,0.085926,58193.0,58189.0,0.001]
[1725033746501,0.085929,58190.0,58189.0,0.001]
[1725033746807,0.085929,58190.0,58176.0,0.085949]
[1725033746808,0.3,58190.0,58174.0,0.3608]
[1725033747100,0.3,58190.0,58175.0,0.3]
[1725033747101,0.19568,58190.0,58175.0,0.3]
[1725033747306,0.49568,58190.0,58174.0,0.3608]
[1725033747497,0.085945,58180.0,58174.0,0.3608]
[1725033747800,0.00025782,58183.0,58179.0,0.3608]
[1725033748201,0.00025782,58183.0,58171.0,0.00025782]
[1725033748202,0.3608,58180.0,58171.0,0.00025782]
[1725033748400,0.085955,58173.0,58171.0,0.00025782]
[1725033748598,0.51572,58172.0,58171.0,0.00025782]
[1725033748903,0.085955,58173.0,58171.0,0.00025782]
[1725033748904,0.601675,58173.0,58171.0,0.00025782]
[1725033749097,0.08593,58190.0,58171.0,0.00025782]
[1725033749098,0.085948,58178.0,58171.0,0.00025782]
[1725033749294,0.00025782,58183.0,58171.0,0.00025782]
[1725033749497,0.085952,58175.0,58171.0,0.00025782]
[1725033749903,0.3608,58173.0,58171.0,0.00025782]
[1725033750104,0.446754,58173.0,58171.0,0.00125782]
[1725033750301,0.51572,58172.0,58171.0,0.00125782]
[1725033750505,0.085978,58157.0,58155.0,0.3608]
[1725033750801,0.3,58160.0,58144.0,0.448317]
[1725033751003,0.085983,58154.0,58146.0,0.085994]
[1725033751202,0.085983,58154.0,58144.0,0.36232]
[1725033751402,0.1396,58156.0,58152.0,0.3608]
[1725033751708,0.085996,58145.0,58144.0,0.0016]
[1725033751894,0.085997,58144.0,58143.0,0.00025782]
[1725033752300,1.201957,58144.0,58143.0,0.00025782]
[1725033752501,1.41596,58144.0,58132.0,0.3608]
[1725033752705,0.086013,58133.0,58132.0,0.3608]
[1725033752900,0.3608,58148.0,58132.0,0.3608]
[1725033753106,0.3608,58148.0,58138.0,0.3608]
[1725033753298,0.085985,58152.0,58145.0,0.3608]
[1725033753499,0.3608,58162.0,58145.0,0.3608]
[1725033753500,0.3608,58166.0,58153.0,0.085984]
[1725033753699,0.3608,58166.0,58150.0,0.3608]
[1725033753700,0.085974,58160.0,58159.0,0.3608]
[1725033754717,0.1052765,58160.0,58159.0,0.3608]
[1725033755104,0.0193025,58160.0,58159.0,0.446775]
[1725033755410,0.08597,58163.0,58159.0,0.446775]
[1725033755602,0.008954,58165.0,58159.0,0.3608]
[1725033755904,0.085972,58161.0,58159.0,0.3608]
[1725033756306,0.085974,58160.0,58159.0,0.3618]
[1725033756510,0.171948,58160.0,58159.0,0.001]
[1725033756807,0.171948,58160.0,58154.0,0.00025782]
[1725033756808,0.085981,58155.0,58154.0,0.00025782]
[1725033757207,0.085981,58155.0,58139.0,0.3608]
[1725033757208,1.77668,58155.0,58139.0,0.3608]
[1725033757507,0.086013,58133.0,58132.0,0.3608]
[1725033758115,0.172026,58133.0,58132.0,0.3608]
[1725033758307,0.086021,58128.0,58127.0,0.36105782]
[1725033758516,0.386021,58128.0,58127.0,0.36105782]
[1725033758700,0.00025782,58138.0,58127.0,0.36105782]
[1725033758701,0.1956,58132.0,58127.0,0.36105782]
[1725033759200,0.00025782,58138.0,58130.0,0.3608]
[1725033759400,0.086013,58133.0,58132.0,0.001]
[1725033759815,0.688106,58133.0,58132.0,0.001]
[1725033760010,0.688106,58133.0,58130.0,0.3608]
[1725033760011,0.086016,58131.0,58130.0,0.3608]
[1725033760212,0.086016,58131.0,58130.0,0.36294825]
[1725033760510,0.086016,58131.0,58130.0,0.00214825]
[1725033760700,0.086016,58131.0,58130.0,0.36294825]
[1725033761302,0.10462153,58131.0,58130.0,0.36294825]
[1725033762208,0.10462153,58131.0,58130.0,0.36394825]
[1725033762411,0.11362153,58131.0,58130.0,0.36394825]
[1725033763510,0.02760553,58131.0,58130.0,0.36394825]
[1725033763720,0.009,58131.0,58130.0,0.44996625]
[1725033765813,0.181032,58131.0,58130.0,0.36394825]
[1725033766021,0.095016,58131.0,58130.0,0.36394825]
[1725033767213,0.181032,58131.0,58130.0,0.36394825]
[1725033767417,0.783128,58131.0,58130.0,0.36394825]
[1725033767823,0.267048,58131.0,58130.0,0.36394825]
[1725033768118,0.697112,58131.0,58130.0,0.36394825]
[1725033768919,1.383128,58131.0,58130.0,0.001]
[1725033769224,0.08604,58115.0,58114.0,0.0186816]
[1725033769531,0.086059,58102.0,58101.0,0.3608]
[1725033770016,0.172118,58102.0,58101.0,0.3608]
[1725033770212,0.086068,58096.0,58089.0,0.3608]
[1725033770418,0.086061,58101.0,58089.0,0.3608]
[1725033770419,0.086077,58090.0,58089.0,0.3608]
[1725033770715,0.00025805,58098.0,58089.0,0.3608]
[1725033770922,0.00025805,58098.0,58097.0,0.3608]
[1725033771124,0.08632305,58098.0,58097.0,0.3608]
[1725033771619,0.00025805,58098.0,58097.0,0.3608]
[1725033772627,0.08632305,58098.0,58097.0,0.3608]
[1725033773719,0.17238805,58098.0,58097.0,0.3608]
[1725033773932,1.58874805,58098.0,58097.0,0.3608]
[1725033774132,0.086077,58090.0,58089.0,0.3608]
[1725033774424,0.08608,58088.0,58087.0,0.3608]
[1725033774631,0.09484258,58088.0,58087.0,0.3608]
[1725033775529,0.08608,58088.0,58087.0,0.3608]
[1725033776225,0.10482113,58088.0,58087.0,0.3608]
[1725033776431,0.01874113,58088.0,58087.0,1.107682]
[1725033776615,0.001,58088.0,58087.0,1.54308]
[1725033776819,0.001,58088.0,58087.0,2.229162]
[1725033777930,0.00025805,58098.0,58097.0,0.086067]
[1725033777931,0.01920289,58098.0,58097.0,0.086067]
[1725033778120,0.01920289,58098.0,58097.0,1.107667]
[1725033778121,0.00025805,58098.0,58097.0,1.107667]
[1725033778920,0.3648,58125.0,58097.0,1.0216]
[1725033778921,0.004,58125.0,58097.0,1.0216]
[1725033779128,0.086041,58115.0,58113.0,0.3608]
[1725033779518,0.086034,58119.0,58113.0,0.3608]
[1725033779722,0.47412892,58130.0,58113.0,0.3608]
[1725033779918,0.086026,58125.0,58120.0,0.086032]
[1725033780124,0.086026,58125.0,58124.0,0.3608]
[1725033780320,0.00025805,58127.0,58118.0,0.3608]
[1725033780321,0.3608,58126.0,58118.0,0.3608]
[1725033780520,0.086034,58119.0,58118.0,0.3608]
[1725033781725,0.00025805,58127.0,58118.0,1.477]
[1725033781925,0.014,58130.0,58126.0,0.746824]
[1725033782130,0.08999,58150.0,58129.0,0.3608]
[1725033782131,0.08599,58149.0,58129.0,0.3608]
[1725033782326,0.004,58150.0,58148.0,0.3]
[1725033782625,0.02328454,58150.0,58148.0,0.3]
[1725033782827,0.3608,58174.0,58148.0,0.3]
[1725033783136,0.09456,58169.0,58168.0,0.3]
[1725033783328,0.00025805,58164.0,58163.0,0.3608]
[1725033785731,1.12305805,58164.0,58163.0,0.3618]
[1725033786440,0.00525805,58164.0,58163.0,0.3608]
[1725033787126,0.00725805,58164.0,58163.0,0.3618]
[1725033787943,0.00706621,58164.0,58163.0,0.3618]
[1725033788335,0.00706621,58164.0,58163.0,0.447769]
[1725033789038,0.09303421,58164.0,58163.0,0.3618]
[1725033789227,0.00706621,58164.0,58163.0,0.3618]
[1725033789733,0.00706621,58164.0,58163.0,0.446769]
[1725033789734,0.00606621,58164.0,58163.0,0.446769]
[1725033790129,0.00606621,58164.0,58163.0,0.3608]
[1725033790542,0.09203421,58164.0,58163.0,0.3608]
[1725033790733,1.59380221,58164.0,58163.0,0.3608]
[1725033791042,0.085982,58154.0,58151.0,0.3608]
[1725033791431,0.601862,58154.0,58151.0,0.3608]
[1725033791641,0.085982,58154.0,58151.0,0.3608]
[1725033791945,0.085982,58154.0,58132.0,0.225014]
[1725033791946,1.2608,58154.0,58132.0,0.0086]
[1725033792239,1.2608,58154.0,58126.0,0.3608]
[1725033792240,0.086022,58127.0,58126.0,0.3608]
[1725033792439,0.086008,58138.0,58126.0,0.3608]
[1725033792440,0.3608,58138.0,58126.0,0.3608]
[1725033792639,0.086015,58132.0,58131.0,0.3608]
[1725033792844,0.086015,58132.0,58126.0,0.3608]
[1725033792845,0.086022,58127.0,58126.0,0.3608]
[1725033793039,0.746822,58127.0,58126.0,0.00025805]
[1725033793235,0.746822,58127.0,58116.0,0.3608]
[1725033793236,0.086037,58117.0,58116.0,0.3608]
[1725033794238,0.3,58118.0,58116.0,0.3608]
[1725033794442,0.281554,58120.0,58116.0,0.3608]
[1725033794743,0.005,58117.0,58116.0,0.3618]
[1725033796345,0.3,58117.0,58116.0,0.3608]
[1725033796650,0.3,58117.0,58116.0,0.3618]
[1725033796852,0.386037,58117.0,58116.0,0.3618]
[1725033797143,0.086037,58117.0,58116.0,0.3618]
[1725033797355,0.602237,58117.0,58116.0,0.3618]
[1725033797539,0.688274,58117.0,58116.0,0.3618]
[1725033797843,0.688274,58117.0,58092.0,0.3]
[1725033797844,0.086063,58100.0,58098.0,0.3608]
[1725033798438,0.086055,58105.0,58098.0,0.446865]
[1725033798638,0.3,58112.0,58103.0,0.3608]
[1725033798835,0.3,58112.0,58105.0,0.446854]
[1725033799044,0.3,58107.0,58100.0,0.3608]
[1725033799247,0.086061,58101.0,58100.0,0.3608]
[1725033799745,0.0429971,58101.0,58100.0,0.3608]
[1725033800437,1.2504181,58101.0,58100.0,0.3608]
[1725033800637,1.2504181,58101.0,58081.0,0.3608]
[1725033800638,0.086086,58085.0,58081.0,0.3608]
[1725033800843,0.086086,58084.0,58081.0,0.3608]
[1725033801238,0.086089,58083.0,58081.0,0.44689]
[1725033801636,0.086089,58082.0,58081.0,0.3608]
[1725033802043,0.00025805,58089.0,58081.0,0.3608]
[1725033802243,0.01526903,58089.0,58081.0,0.3608]
[1725033802447,0.00025805,58089.0,58086.0,0.3608]
[1725033802643,0.00025805,58089.0,58088.0,0.08608]
[1725033803644,0.00025805,58089.0,58086.0,0.66236]
[1725033803645,0.08633705,58089.0,58086.0,0.36236]
[1725033803951,0.00125805,58089.0,58088.0,0.008]
[1725033804143,0.00125805,58089.0,58088.0,0.09408]
[1725033804945,0.00125805,58089.0,58088.0,0.008]
[1725033805147,0.08733705,58089.0,58088.0,0.008]
[1725033805844,0.00125805,58089.0,58088.0,0.09408]
[1725033806039,0.00025805,58089.0,58088.0,0.08608]
[1725033806244,0.00125805,58089.0,58088.0,0.90252]
[1725033806548,0.00125805,58089.0,58088.0,0.60252]
[1725033806748,0.19564,58104.0,58088.0,1.50252]
[1725033806954,0.01500233,58110.0,58103.0,0.746858]
[1725033807247,0.44683,58123.0,58119.0,0.086034]
[1725033807446,0.44683,58123.0,58109.0,0.3608]
[1725033807447,0.3608,58123.0,58122.0,0.08603]
[1725033807653,0.086024,58126.0,58122.0,0.086029]
[1725033807847,0.086024,58126.0,58119.0,0.446834]
[1725033808044,0.3608,58128.0,58119.0,0.3608]
[1725033808250,0.086034,58119.0,58118.0,0.00025805]
[1725033809947,0.602234,58119.0,58118.0,0.00025805]
[1725033810151,0.086034,58119.0,58118.0,0.00025805]
[1725033810852,1.000268,58119.0,58118.0,0.00125805]
[1725033811056,0.484068,58119.0,58118.0,0.00125805]
[1725033811353,1.01514725,58119.0,58118.0,0.00125805]
[1725033811855,1.01514725,58119.0,58118.0,0.38729405]
[1725033811856,0.012,58119.0,58118.0,0.38729405]
[1725033812065,0.00025805,58130.0,58119.0,0.086034]
[1725033812255,0.00025805,58130.0,58129.0,0.746819]
[1725033812557,0.085993,58147.0,58134.0,0.086012]
[1725033812558,0.08601,58136.0,58134.0,0.086012]
[1725033812751,0.085993,58147.0,58137.0,0.086007]
[1725033813051,0.086004,58140.0,58137.0,0.086007]
[1725033813648,0.086001,58142.0,58139.0,0.086005]
[1725033813850,0.00025805,58144.0,58135.0,0.74833]
[1725033814051,0.085999,58143.0,58135.0,0.3608]
[1725033814253,0.086012,58134.0,58133.0,0.00025805]
[1725033814456,0.532824,58134.0,58133.0,0.00025805]
[1725033814663,0.086019,58130.0,58115.0,0.08604]
[1725033814866,0.086036,58119.0,58115.0,0.08604]
[1725033815163,0.086023,58127.0,58113.0,0.3]
[1725033815358,0.3608,58126.0,58118.0,0.3608]
[1725033815562,0.446824,58126.0,58118.0,0.3608]
[1725033816058,0.3608,58126.0,58118.0,0.6608]
[1725033816261,0.446825,58126.0,58123.0,0.086027]
[1725033816565,0.00025805,58128.0,58123.0,0.6608]
[1725033817160,0.00025805,58128.0,58127.0,0.086022]
[1725033818059,0.3608,58149.0,58127.0,1.11612]
[1725033818259,0.3608,58156.0,58148.0,0.3]
[1725033818558,0.3608,58156.0,58145.0,0.3608]
[1725033818559,0.1191,58159.0,58154.0,0.3]
[1725033818759,0.3608,58163.0,58154.0,0.3]
[1725033818967,0.085971,58162.0,58154.0,0.3]
[1725033819162,0.37595181,58163.0,58157.0,0.3608]
[1725033819351,0.01515181,58163.0,58157.0,0.3608]
[1725033819663,0.00025805,58164.0,58157.0,0.3608]
[1725033820165,0.01535494,58164.0,58159.0,0.3]
[1725033820359,0.00025805,58164.0,58159.0,0.3]
[1725033820760,0.00025805,58164.0,58163.0,0.085969]
[1725033820962,0.00025805,58164.0,58163.0,0.446769]
[1725033822154,0.36927925,58187.0,58163.0,1.4766]
[1725033822155,0.3608,58187.0,58163.0,1.4766]
[1725033822357,0.3608,58187.0,58177.0,0.085948]
[1725033822358,0.085936,58186.0,58177.0,0.085948]
[1725033822551,0.3608,58187.0,58171.0,0.085957]
[1725033822552,0.3608,58182.0,58171.0,0.085957]
[1725033822765,0.3,58191.0,58177.0,0.3608]
[1725033822766,0.3608,58188.0,58177.0,0.3608]
[1725033822960,0.08594,58183.0,58177.0,0.3608]
[1725033823354,0.00025781,58186.0,58174.0,0.00025781]
[1725033823355,0.3608,58182.0,58174.0,0.00025781]
[1725033823555,0.085946,58179.0,58174.0,0.00025781]
[1725033823759,0.3608,58181.0,58174.0,0.00025781]
[1725033824156,0.446743,58181.0,58177.0,0.001]
[1725033824363,0.00025781,58186.0,58181.0,0.085942]
[1725033824560,0.00025781,58186.0,58177.0,0.001]
[1725033824756,0.085939,58184.0,58176.0,0.3608]
[1725033825270,0.085939,58184.0,58179.0,0.085945]
[1725033825567,0.085941,58182.0,58181.0,0.3608]
[1725033825867,0.2327428,58187.0,58184.0,0.085937]
[1725033826164,0.08593,58190.0,58186.0,0.085935]
[1725033826365,0.08593,58190.0,58187.0,0.085933]
[1725033826767,0.3693663,58193.0,58181.0,0.3608]
[1725033827364,0.3693663,58193.0,58174.0,0.08720981]
[1725033827365,0.00025781,58194.0,58193.0,0.085925]
[1725033829169,0.00025781,58194.0,58193.0,0.086925]
[1725033830272,0.085901,58209.0,58194.0,0.085923]
[1725033830563,0.3608,58218.0,58211.0,0.085898]
[1725033830764,0.17208,58219.0,58211.0,0.085898]
[1725033831264,0.00025781,58221.0,58211.0,0.085897]
[1725033831466,0.00025781,58221.0,58213.0,0.3608]
[1725033831672,0.085894,58214.0,58213.0,0.3608]
[1725033832466,0.085891,58216.0,58213.0,0.446695]
[1725033832764,0.085894,58215.0,58213.0,0.3608]
[1725033833467,0.085897,58212.0,58211.0,0.001]
[1725033833668,0.171794,58212.0,58211.0,0.001]
[1725033833856,0.0859,58210.0,58209.0,0.00025781]
[1725033834058,0.1718,58210.0,58209.0,0.00025781]
[1725033834256,0.1718,58210.0,58196.0,0.3608]
[1725033834257,0.085919,58197.0,58196.0,0.3608]
[1725033835978,0.085919,58197.0,58196.0,0.3618]
[1725033836268,0.085926,58192.0,58191.0,0.00025781]
[1725033836468,0.471852,58192.0,58191.0,0.00025781]
[1725033836674,0.085926,58192.0,58191.0,0.00025781]
[1725033836877,0.773298,58192.0,58191.0,0.00025781]
[1725033837081,0.17188,58183.0,58182.0,0.3608]
[1725033837374,0.00879198,58183.0,58175.0,0.3608]
[1725033837672,0.3608,58185.0,58170.0,0.3608]
[1725033837871,0.085957,58171.0,58170.0,0.3608]
[1725033838274,0.085954,58174.0,58165.0,0.00025781]
[1725033838275,0.085965,58166.0,58165.0,0.00025781]
[1725033838576,0.085957,58171.0,58165.0,0.00025781]
[1725033838770,0.085957,58171.0,58163.0,0.34145119]
[1725033838971,0.00025781,58176.0,58168.0,0.3608]
[1725033838972,0.08620781,58176.0,58168.0,0.3608]
[1725033839172,0.08620781,58176.0,58174.0,0.3608]
[1725033839173,0.00025781,58176.0,58174.0,0.3608]
[1725033839361,0.01583511,58176.0,58175.0,0.085951]
[1725033839566,0.00025781,58176.0,58175.0,0.085951]
[1725033839772,0.19524,58191.0,58184.0,0.085938]
[1725033839773,0.085928,58191.0,58184.0,0.085938]
[1725033840082,0.3608,58196.0,58184.0,0.446738]
[1725033840269,0.3608,58196.0,58184.0,0.3608]
[1725033840469,0.37616086,58196.0,58184.0,0.3608]
[1725033840666,0.085922,58195.0,58184.0,0.36105781]
[1725033841362,0.085937,58185.0,58184.0,0.36105781]
[1725033841673,0.085937,58185.0,58184.0,0.00025781]
[1725033842063,0.085937,58185.0,58184.0,0.00125781]
[1725033842679,0.6305915,58185.0,58184.0,0.00125781]
[1725033842875,0.1149915,58185.0,58184.0,0.00125781]
[1725033843983,0.0290545,58185.0,58184.0,0.44799581]
[1725033844184,0.014,58185.0,58184.0,0.44799581]
[1725033844474,0.014,58185.0,58184.0,1.64853381]
[1725033844874,0.01522503,58196.0,58195.0,0.085922]
[1725033844875,0.00025781,58196.0,58195.0,0.085922]
[1725033845480,0.00025781,58196.0,58195.0,0.446722]
[1725033845985,0.01559536,58196.0,58195.0,0.446722]
[1725033846177,0.00025781,58196.0,58195.0,0.446722]
[1725033847578,0.00225781,58196.0,58195.0,0.446722]
[1725033848184,0.00225781,58196.0,58195.0,1.6635396]
[1725033848185,0.00025781,58196.0,58195.0,1.6635396]
[1725033848782,0.00025781,58196.0,58195.0,1.6625396]
[1725033848990,0.09468464,58216.0,58203.0,0.3]
[1725033849181,0.08588,58224.0,58215.0,0.6608]
[1725033849381,0.00088,58232.0,58220.0,0.3608]
[1725033849579,0.3,58223.0,58217.0,0.05119211]
[1725033849783,0.085874,58228.0,58215.0,0.085892]
[1725033850082,0.171782,58216.0,58215.0,0.00152]
[1725033850285,0.085897,58213.0,58211.0,0.00025781]
[1725033851175,0.085897,58213.0,58211.0,0.08615581]
[1725033851584,0.00025781,58222.0,58211.0,0.08615581]
[1725033851585,0.00025781,58222.0,58212.0,0.085897]
[1725033851785,0.00025781,58222.0,58216.0,0.3608]
[1725033851978,0.085889,58217.0,58216.0,0.3608]
[1725033852173,0.00025781,58222.0,58211.0,0.00125781]
[1725033852174,0.171794,58212.0,58211.0,0.00125781]
[1725033852375,0.1803758,58212.0,58211.0,0.00125781]
[1725033853182,0.085897,58212.0,58211.0,0.00025781]
[1725033853775,1.201257,58212.0,58211.0,0.00025781]
[1725033853988,1.4907056,58212.0,58200.0,0.05119211]
[1725033854173,0.3,58207.0,58196.0,0.06825615]
[1725033854374,0.085917,58198.0,58196.0,0.05123682]
[1725033854582,0.08592,58196.0,58194.0,0.41203682]
[1725033854789,0.08592,58196.0,58191.0,0.05123682]
[1725033854790,0.085926,58192.0,58191.0,0.05123682]
[1725033854977,0.085929,58190.0,58187.0,0.3608]
[1725033855286,0.3,58191.0,58186.0,8.1e-07]
[1725033855287,0.257802,58187.0,58186.0,8.1e-07]
[1725033855498,0.3608,58188.0,58175.0,8.2e-07]
[1725033855499,0.1719,58176.0,58175.0,8.2e-07]
[1725033855785,0.085966,58166.0,58165.0,0.06825615]
[1725033855985,0.385966,58166.0,58165.0,0.05127177]
[1725033856185,0.385966,58166.0,58161.0,0.06825615]
[1725033856186,0.085971,58162.0,58161.0,0.05127352]
[1725033856375,0.085971,58162.0,58160.0,1.61947352]
[1725033856579,0.085971,58162.0,58160.0,1.61843352]
[1725033856775,0.085971,58162.0,58160.0,1.56716]
[1725033857082,0.00025781,58167.0,58160.0,1.61843352]
[1725033857280,0.01490656,58167.0,58160.0,1.56716]
[1725033857480,0.00025781,58167.0,58166.0,0.3608]
[1725033857882,0.00025781,58167.0,58166.0,0.446765]
[1725033858085,0.3,58182.0,58166.0,0.446765]
[1725033858086,0.00869612,58182.0,58166.0,0.87656]
[1725033858387,0.3,58187.0,58174.0,0.3608]
[1725033858580,0.085946,58179.0,58174.0,0.3608]
[1725033858977,0.00863721,58182.0,58174.0,0.3608]
[1725033859178,0.00025781,58182.0,58174.0,0.3608]
[1725033859381,0.00025781,58182.0,58179.0,0.3608]
[1725033860584,0.085943,58181.0,58179.0,0.3608]
[1725033860785,0.01487323,58182.0,58179.0,0.3608]
[1725033861090,0.01487323,58182.0,58181.0,0.085943]
[1725033861487,0.3608,58203.0,58181.0,0.085943]
[1725033861488,0.085915,58200.0,58194.0,0.085923]
[1725033861683,0.085919,58197.0,58196.0,0.3608]
[1725033861882,0.085932,58188.0,58182.0,0.42902284]
[1725033862082,0.085939,58184.0,58182.0,0.3608]
[1725033862283,0.08594,58183.0,58182.0,0.3608]
[1725033863880,0.60154,58183.0,58177.0,0.00025781]
[1725033864081,0.618641,58178.0,58177.0,8.1e-07]
[1725033864389,1.132694,58178.0,58177.0,8.1e-07]
[1725033864583,1.648374,58178.0,58177.0,8.1e-07]
[1725033865285,0.446747,58178.0,58177.0,8.1e-07]
[1725033865488,0.448747,58178.0,58177.0,0.00100081]
[1725033865692,0.448747,58178.0,58177.0,0.36180081]
[1725033865693,0.002,58178.0,58177.0,0.36180081]
[1725033865990,0.002,58178.0,58177.0,1.56342881]
[1725033866188,0.19524,58197.0,58183.0,0.085939]
[1725033866381,0.19524,58197.0,58177.0,1.47748081]
[1725033866382,0.01520604,58188.0,58187.0,0.3608]
[1725033866584,0.00025781,58188.0,58187.0,0.3608]
[1725033866888,0.08618981,58188.0,58187.0,0.3608]
[1725033868393,0.00025781,58188.0,58187.0,0.446734]
[1725033868898,0.00025781,58188.0,58187.0,0.447734]